fUST/lending_fUST_20250627
["ID","MTS","AMOUNT","RATE_DAILY","PERIOD"]
[368114337,1751027457445,-3172.08,0.00020547,2]
[368114338,1751027457454,-779.54,0.00020547,2]
[368114339,1751027457464,-460.0,0.00020547,2]
[368114340,1751027457474,-867.73,0.00020547,2]
[368114341,1751027457483,-206.3,0.00020547,2]
[368114342,1751027457494,-6156.57,0.00020547,2]
[368114343,1751027457503,-742.84,0.00020547,2]
[368114344,1751027457516,-460.0,0.00020547,2]
[368114345,1751027457526,-460.0,0.00020547,2]
[368114346,1751027457535,-460.0,0.00020547,2]
[368114347,1751027457545,-4231.52,0.00020547,2]
[368114348,1751027457554,-460.0,0.00020547,2]
[368114349,1751027457564,-460.0,0.00020547,2]
[368114350,1751027457574,-4008.72,0.00020547,2]
[368114351,1751027457583,-750.91,0.00020547,2]
[368114352,1751027457592,-1846.1,0.00020547,2]
[368114353,1751027457602,-530.26968491,0.00020548,2]
[368114354,1751027457611,-356.8872515,0.00020548,2]
[368114355,1751027457620,-307.4082959,0.00020548,2]
[368114356,1751027457633,-828.22200964,0.00020596,2]
[368114357,1751027457643,-858.86622399,0.00020651,2]
[368114358,1751027457651,-1283.0,0.00020656,2]
[368114359,1751027457660,-700.26952703,0.00020706,2]
[368114360,1751027457670,-794.151,0.00020748,2]
[368114361,1751027457680,-502.18333495,0.00020793,2]
[368114362,1751027457689,-1000.0,0.000208,2]
[368114363,1751027457699,-5000.0,0.00020814,2]
[368114364,1751027457708,-160.20507518,0.0002082,2]
[368114365,1751027457717,-293.45627482,0.0002082,2]
[368114366,1751027457727,-460.0,0.00020821,2]
[368114367,1751027457736,-447.3309359,0.00020821,2]
[368114368,1751027457757,-460.0,0.00020821,2]
[368114369,1751027457768,-460.0,0.00020821,2]
[368114370,1751027457778,-460.0,0.00020821,2]
[368114371,1751027457788,-460.0,0.00020821,2]
[368114372,1751027457799,-868.8,0.00020821,2]
[368114373,1751027457809,-460.0,0.00020821,2]
[368114374,1751027457819,-460.0,0.00020821,2]
[368114375,1751027457829,-199.6270523,0.00020821,2]
[368114376,1751027457839,-460.0,0.00020821,2]
[368114377,1751027457849,-460.0,0.00020821,2]
[368114378,1751027457859,-460.0,0.00020821,2]
[368114379,1751027457869,-460.0,0.00020821,2]
[368114380,1751027457879,-460.0,0.00020821,2]
[368114381,1751027457889,-460.0,0.00020821,2]
[368114382,1751027457899,-460.0,0.00020821,2]
[368114383,1751027457909,-460.0,0.00020821,2]
[368114384,1751027457919,-151.0,0.00020821,2]
[368114385,1751027457929,-151.729213,0.00020821,2]
[368114386,1751027457938,-460.0,0.00020821,2]
[368114387,1751027457948,-884.99,0.00020821,2]
[368114388,1751027457958,-460.0,0.00020821,2]
[368114389,1751027457967,-151.0,0.00020821,2]
[368114390,1751027457977,-460.0,0.00020821,2]
[368114391,1751027457988,-460.0,0.00020821,2]
[368114392,1751027457998,-516.86,0.00020821,2]
[368114393,1751027458011,-151.0,0.00020821,2]
[368114394,1751027458021,-151.0,0.00020821,2]
[368114395,1751027458031,-460.0,0.00020821,2]
[368114396,1751027458041,-151.0,0.00020821,2]
[368114397,1751027458050,-563.57,0.00020821,2]
[368114398,1751027458059,-262.401285,0.00020821,2]
[368114399,1751027458069,-151.0,0.00020821,2]
[368114400,1751027458078,-262.401285,0.00020821,2]
[368114401,1751027458088,-460.0,0.00020821,2]
[368114402,1751027458098,-2007.38,0.00020821,2]
[368114403,1751027458107,-1138.6,0.00020821,2]
[368114404,1751027458117,-460.0,0.00020821,2]
[368114405,1751027458126,-151.0,0.00020821,2]
[368114406,1751027458136,-2956.2,0.00020821,2]
[368114407,1751027458146,-460.0,0.00020821,2]
[368114408,1751027458156,-7048.19,0.00020821,2]
[368114409,1751027458166,-460.0,0.00020821,2]
[368114410,1751027458175,-460.0,0.00020821,2]
[368114411,1751027458184,-1332.79,0.00020821,2]
[368114412,1751027458194,-460.0,0.00020821,2]
[368114413,1751027458203,-460.0,0.00020821,2]
[368114414,1751027458213,-460.0,0.00020821,2]
[368114415,1751027458222,-249.895528,0.00020821,2]
[368114416,1751027458232,-249.895528,0.00020821,2]
[368114417,1751027458241,-857.83,0.00020821,2]
[368114418,1751027458250,-460.0,0.00020821,2]
[368114419,1751027458265,-460.0,0.00020821,2]
[368114420,1751027458274,-460.0,0.00020821,2]
[368114421,1751027458284,-875.94,0.00020821,2]
[368114422,1751027458294,-460.0,0.00020821,2]
[368114423,1751027458304,-1879.18,0.00020821,2]
[368114424,1751027458314,-963.88,0.00020821,2]
[368114425,1751027458324,-706.48,0.00020821,2]
[368114426,1751027458333,-2249.58,0.00020821,2]
[368114427,1751027458343,-460.0,0.00020821,2]
[368114428,1751027458353,-542.41567513,0.00020821,2]
[368114429,1751027458362,-460.0,0.00020821,2]
[368114430,1751027458371,-5580.76,0.00020821,2]
[368114431,1751027458381,-460.0,0.00020821,2]
[368114432,1751027458391,-1858.16,0.00020821,2]
[368114433,1751027458400,-151.0,0.00020821,2]
[368114434,1751027458410,-151.0,0.00020821,2]
[368114435,1751027458419,-460.0,0.00020821,2]
[368114436,1751027458429,-151.0,0.00020821,2]
[368114437,1751027458438,-716.5,0.00020821,2]
[368114438,1751027458447,-151.0,0.00020821,2]
[368114439,1751027458457,-619.78,0.00020821,2]
[368114440,1751027458466,-495.44,0.00020821,2]
[368114441,1751027458476,-151.0,0.00020821,2]
[368114442,1751027458486,-460.0,0.00020821,2]
[368114443,1751027458496,-460.0,0.00020821,2]
[368114444,1751027458508,-1103.54,0.00020821,2]
[368114445,1751027458518,-1121.1,0.00020821,2]
[368114446,1751027458527,-863.75,0.00020821,2]
[368114447,1751027458537,-460.0,0.00020821,2]
[368114448,1751027458658,-460.0,0.00020821,2]
[368114449,1751027458668,-460.0,0.00020821,2]
[368114450,1751027458677,-460.0,0.00020821,2]
[368114451,1751027458686,-2103.41,0.00020821,2]
[368114452,1751027458695,-460.0,0.00020821,2]
[368114453,1751027458705,-460.0,0.00020821,2]
[368114454,1751027458714,-460.0,0.00020821,2]
[368114455,1751027458723,-2500.27,0.00020821,2]
[368114456,1751027458732,-652.23,0.00020821,2]
[368114457,1751027458742,-460.0,0.00020821,2]
[368114458,1751027458753,-460.0,0.00020821,2]
[368114459,1751027458764,-2369.02,0.00020821,2]
[368114460,1751027458773,-624.87,0.00020821,2]
[368114461,1751027458786,-798.78,0.00020821,2]
[368114462,1751027458796,-460.0,0.00020821,2]
[368114463,1751027458807,-460.0,0.00020821,2]
[368114464,1751027458816,-3858.34,0.00020821,2]
[368114465,1751027458825,-1102.8,0.00020821,2]
[368114466,1751027458834,-460.0,0.00020821,2]
[368114467,1751027458843,-460.0,0.00020821,2]
[368114468,1751027458854,-3172.08,0.00020821,2]
[368114469,1751027458863,-779.54,0.00020821,2]
[368114470,1751027458873,-460.0,0.00020821,2]
[368114471,1751027458882,-867.73,0.00020821,2]
[368114472,1751027458891,-6156.57,0.00020821,2]
[368114473,1751027458901,-742.84,0.00020821,2]
[368114474,1751027458910,-460.0,0.00020821,2]
[368114475,1751027458919,-460.0,0.00020821,2]
[368114476,1751027458929,-460.0,0.00020821,2]
[368114477,1751027458938,-151.0,0.00020821,2]
[368114478,1751027458947,-4231.52,0.00020821,2]
[368114479,1751027458956,-460.0,0.00020821,2]
[368114480,1751027458966,-151.0,0.00020821,2]
[368114481,1751027458975,-460.0,0.00020821,2]
[368114482,1751027458985,-4008.72,0.00020821,2]
[368114483,1751027458994,-750.91,0.00020821,2]
[368114484,1751027459004,-1846.1,0.00020821,2]
[368114485,1751027459014,-966.0,0.00020829,2]
[368114486,1751027459024,-1367.0,0.00020871,2]
[368114487,1751027459034,-89873.62717171,0.00020884,2]
[368114488,1751027459044,-151.0,0.00020884,2]
[368114489,1751027459053,-151.0,0.00020884,2]
[368114490,1751027459063,-151.0,0.00020884,2]
[368114491,1751027459072,-230.187499,0.00020884,2]
[368114492,1751027459082,-1680.0,0.00020898,2]
[368114493,1751027459091,-420.0,0.00020898,2]
[368114494,1751027459100,-9378.13374015,0.000209,4]
[368114495,1751027459110,-244.36759311,0.00020989,2]
[368114496,1751027459120,-33711.69113565,0.00021,2]
[368114497,1751027459129,-350.0,0.00021,2]
[368114498,1751027459139,-366.1147399,0.00021041,2]
[368114499,1751027459148,-1500.0,0.00021068,2]
[368114500,1751027459157,-592.85541307,0.00021068,2]
[368114501,1751027459166,-1500.0,0.00021068,2]
[368114502,1751027459176,-174.71796,0.0002107,3]
[368114503,1751027459186,-151.0,0.00021072,2]
[368114504,1751027459195,-151.0,0.00021072,2]
[368114505,1751027459205,-151.0,0.00021072,2]
[368114506,1751027459214,-151.0,0.00021072,2]
[368114507,1751027459223,-484.603058,0.00021072,2]
[368114508,1751027459233,-484.603058,0.00021072,2]
[368114509,1751027459242,-151.0,0.00021072,2]
[368114510,1751027459251,-153.164602,0.00021072,2]
[368114511,1751027459264,-9378.13373988,0.00021072,4]
[368114512,1751027459273,-151.0,0.00021095,2]
[368114513,1751027459283,-151.0,0.00021095,2]
[368114514,1751027459293,-151.0,0.00021095,2]
[368114515,1751027459302,-460.0,0.00021095,2]
[368114516,1751027459311,-460.0,0.00021095,2]
[368114517,1751027459321,-460.0,0.00021095,2]
[368114518,1751027459331,-460.0,0.00021095,2]
[368114519,1751027459340,-460.0,0.00021095,2]
[368114520,1751027459350,-868.8,0.00021095,2]
[368114521,1751027459360,-460.0,0.00021095,2]
[368114522,1751027459369,-460.0,0.00021095,2]
[368114523,1751027459379,-460.0,0.00021095,2]
[368114524,1751027459389,-151.0,0.00021095,2]
[368114525,1751027459398,-151.0,0.00021095,2]
[368114526,1751027459408,-527.97827967,0.00021095,2]
[368114527,1751027459417,-460.0,0.00021095,2]
[368114528,1751027459427,-274.58950516,0.00021095,2]
[368114529,1751027459436,-460.0,0.00021095,2]
[368114530,1751027459446,-603.29127568,0.00021095,2]
[368114531,1751027459455,-460.0,0.00021095,2]
[368114532,1751027459465,-460.0,0.00021095,2]
[368114533,1751027459474,-460.0,0.00021095,2]
[368114534,1751027459483,-884.99,0.00021095,2]
[368114535,1751027459494,-460.0,0.00021095,2]
[368114536,1751027459503,-460.0,0.00021095,2]
[368114537,1751027459515,-480.9,0.00021095,2]
[368114538,1751027459524,-516.86,0.00021095,2]
[368114539,1751027459534,-460.0,0.00021095,2]
[368114540,1751027459544,-563.57,0.00021095,2]
[368114541,1751027459553,-460.0,0.00021095,2]
[368114542,1751027459563,-151.0,0.00021095,2]
[368114543,1751027459573,-2007.38,0.00021095,2]
[368114544,1751027459582,-1138.6,0.00021095,2]
[368114545,1751027459592,-460.0,0.00021095,2]
[368114546,1751027459602,-2956.2,0.00021095,2]
[368114547,1751027459611,-460.0,0.00021095,2]
[368114548,1751027459621,-7048.19,0.00021095,2]
[368114549,1751027459633,-460.0,0.00021095,2]
[368114550,1751027459643,-460.0,0.00021095,2]
[368114551,1751027459652,-1332.79,0.00021095,2]
[368114552,1751027459661,-460.0,0.00021095,2]
[368114553,1751027459671,-460.0,0.00021095,2]
[368114554,1751027459680,-460.0,0.00021095,2]
[368114555,1751027459689,-857.83,0.00021095,2]
[368114556,1751027459701,-460.0,0.00021095,2]
[368114557,1751027459712,-460.0,0.00021095,2]
[368114558,1751027459722,-460.0,0.00021095,2]
[368114559,1751027459731,-875.94,0.00021095,2]
[368114560,1751027459741,-460.0,0.00021095,2]
[368114561,1751027459750,-1879.18,0.00021095,2]
[368114562,1751027459761,-151.0,0.00021095,2]
[368114563,1751027459771,-963.88,0.00021095,2]
[368114564,1751027459780,-706.48,0.00021095,2]
[368114565,1751027459789,-2249.58,0.00021095,2]
[368114566,1751027459800,-460.0,0.00021095,2]
[368114567,1751027459809,-485.34,0.00021095,2]
[368114568,1751027459818,-5580.76,0.00021095,2]
[368114569,1751027459827,-460.0,0.00021095,2]
[368114570,1751027459836,-1858.16,0.00021095,2]
[368114571,1751027459846,-460.0,0.00021095,2]
[368114572,1751027459855,-716.5,0.00021095,2]
[368114573,1751027459865,-619.78,0.00021095,2]
[368114574,1751027459874,-495.44,0.00021095,2]
[368114575,1751027459883,-473.97412517,0.00021095,2]
[368114576,1751027459893,-172.36113675,0.00021095,2]
[368114577,1751027459902,-1103.54,0.00021095,2]
[368114578,1751027459911,-1121.1,0.00021095,2]
[368114579,1751027459921,-863.75,0.00021095,2]
[368114580,1751027459930,-460.0,0.00021095,2]
[368114581,1751027459940,-460.0,0.00021095,2]
[368114582,1751027459949,-578.65068982,0.00021095,2]
[368114583,1751027459959,-460.0,0.00021095,2]
[368114584,1751027459968,-2103.41,0.00021095,2]
[368114585,1751027459977,-460.0,0.00021095,2]
[368114586,1751027459987,-460.0,0.00021095,2]
[368114587,1751027459997,-2500.27,0.00021095,2]
[368114588,1751027460010,-652.23,0.00021095,2]
[368114589,1751027460019,-438.07,0.00021095,2]
[368114590,1751027460029,-460.0,0.00021095,2]
[368114591,1751027460039,-2369.02,0.00021095,2]
[368114592,1751027460049,-624.87,0.00021095,2]
[368114593,1751027460059,-798.78,0.00021095,2]
[368114594,1751027460069,-460.0,0.00021095,2]
[368114595,1751027460079,-460.0,0.00021095,2]
[368114596,1751027460088,-3858.34,0.00021095,2]
[368114597,1751027460097,-1102.8,0.00021095,2]
[368114598,1751027460107,-460.0,0.00021095,2]
[368114599,1751027460116,-460.0,0.00021095,2]
[368114600,1751027460126,-3172.08,0.00021095,2]
[368114601,1751027460135,-779.54,0.00021095,2]
[368114602,1751027460220,-460.0,0.00021095,2]
[368114603,1751027460236,-867.73,0.00021095,2]
[368114604,1751027460245,-6156.57,0.00021095,2]
[368114605,1751027460257,-742.84,0.00021095,2]
[368114606,1751027460266,-460.0,0.00021095,2]
[368114607,1751027460275,-460.0,0.00021095,2]
[368114608,1751027460285,-460.0,0.00021095,2]
[368114609,1751027460294,-4231.52,0.00021095,2]
[368114610,1751027460304,-460.0,0.00021095,2]
[368114611,1751027460314,-460.0,0.00021095,2]
[368114612,1751027460323,-750.91,0.00021095,2]
[368114613,1751027460333,-1846.1,0.00021095,2]
[368114614,1751027460343,-4008.72,0.00021095,2]
[368114615,1751027460353,-2161.0,0.00021119,2]
[368114616,1751027460362,-654.0,0.00021119,2]
[368114617,1751027460372,-406.0,0.00021119,2]
[368114618,1751027460381,-965.451225,0.00021168,4]
[368114619,1751027460390,-387741.17156,0.000212,2]
[368114620,1751027460400,-1367.0,0.00021208,2]
[368114621,1751027460409,-151.0,0.00021208,2]
[368114622,1751027460419,-151.0,0.00021208,2]
[368114623,1751027460428,-150.0,0.00021239,2]
[368114624,1751027460438,-9378.13373988,0.00021245,4]
[368114625,1751027460447,-10400.39089948,0.00021269,2]
[368114626,1751027460457,-150.0,0.00021292,2]
[368114627,1751027460467,-150.0,0.00021292,2]
[368114628,1751027460476,-150.0,0.00021292,2]
[368114629,1751027460486,-5000.0,0.00021362,2]
[368114630,1751027460496,-460.0,0.00021369,2]
[368114631,1751027460509,-460.0,0.00021369,2]
[368114632,1751027460518,-460.0,0.00021369,2]
[368114633,1751027460528,-460.0,0.00021369,2]
[368114634,1751027460538,-868.8,0.00021369,2]
[368114635,1751027460548,-460.0,0.00021369,2]
[368114636,1751027460558,-473.99,0.00021369,2]
[368114637,1751027460567,-515.94,0.00021369,2]
[368114638,1751027460577,-460.0,0.00021369,2]
[368114639,1751027460586,-319.55,0.00021369,2]
[368114640,1751027460595,-460.0,0.00021369,2]
[368114641,1751027460605,-151.0,0.00021369,2]
[368114642,1751027460614,-460.0,0.00021369,2]
[368114643,1751027460623,-884.99,0.00021369,2]
[368114644,1751027460636,-237.34,0.00021369,2]
[368114645,1751027460645,-151.0,0.00021369,2]
[368114646,1751027460655,-460.0,0.00021369,2]
[368114647,1751027460664,-516.86,0.00021369,2]
[368114648,1751027460673,-151.0,0.00021369,2]
[368114649,1751027460683,-460.0,0.00021369,2]
[368114650,1751027460692,-563.57,0.00021369,2]
[368114651,1751027460701,-262.401285,0.00021369,2]
[368114652,1751027460710,-262.401285,0.00021369,2]
[368114653,1751027460720,-460.0,0.00021369,2]
[368114654,1751027460730,-2007.38,0.00021369,2]
[368114655,1751027460739,-1138.6,0.00021369,2]
[368114656,1751027460748,-460.0,0.00021369,2]
[368114657,1751027460762,-151.0,0.00021369,2]
[368114658,1751027460772,-2956.2,0.00021369,2]
[368114659,1751027460782,-460.0,0.00021369,2]
[368114660,1751027460792,-7048.19,0.00021369,2]
[368114661,1751027460802,-460.0,0.00021369,2]
[368114662,1751027460811,-460.0,0.00021369,2]
[368114663,1751027460820,-460.0,0.00021369,2]
[368114664,1751027460830,-460.0,0.00021369,2]
[368114665,1751027460839,-1332.79,0.00021369,2]
[368114666,1751027460849,-460.0,0.00021369,2]
[368114667,1751027460859,-249.895528,0.00021369,2]
[368114668,1751027460868,-249.895528,0.00021369,2]
[368114669,1751027460877,-857.83,0.00021369,2]
[368114670,1751027460887,-460.0,0.00021369,2]
[368114671,1751027460896,-460.0,0.00021369,2]
[368114672,1751027460906,-875.94,0.00021369,2]
[368114673,1751027460915,-460.0,0.00021369,2]
[368114674,1751027460924,-1879.18,0.00021369,2]
[368114675,1751027460933,-963.88,0.00021369,2]
[368114676,1751027460943,-706.48,0.00021369,2]
[368114677,1751027460952,-2249.58,0.00021369,2]
[368114678,1751027460961,-5580.76,0.00021369,2]
[368114679,1751027460970,-460.0,0.00021369,2]
[368114680,1751027460979,-1858.16,0.00021369,2]
[368114681,1751027460988,-151.0,0.00021369,2]
[368114682,1751027460997,-460.0,0.00021369,2]
[368114683,1751027461008,-151.0,0.00021369,2]
[368114684,1751027461017,-716.5,0.00021369,2]
[368114685,1751027461027,-151.0,0.00021369,2]
[368114686,1751027461036,-619.78,0.00021369,2]
[368114687,1751027461045,-495.44,0.00021369,2]
[368114688,1751027461055,-151.0,0.00021369,2]
[368114689,1751027461066,-1103.54,0.00021369,2]
[368114690,1751027461075,-1121.1,0.00021369,2]
[368114691,1751027461085,-863.75,0.00021369,2]
[368114692,1751027461094,-460.0,0.00021369,2]
[368114693,1751027461103,-460.0,0.00021369,2]
[368114694,1751027461113,-460.0,0.00021369,2]
[368114695,1751027461122,-2103.41,0.00021369,2]
[368114696,1751027461133,-460.0,0.00021369,2]
[368114697,1751027461143,-460.0,0.00021369,2]
[368114698,1751027461153,-2500.27,0.00021369,2]
[368114699,1751027461162,-652.23,0.00021369,2]
[368114700,1751027461171,-460.0,0.00021369,2]
[368114701,1751027461181,-2369.02,0.00021369,2]
[368114702,1751027461190,-624.87,0.00021369,2]
[368114703,1751027461200,-798.78,0.00021369,2]
[368114704,1751027461209,-460.0,0.00021369,2]
[368114705,1751027461219,-460.0,0.00021369,2]
[368114706,1751027461229,-3858.34,0.00021369,2]
[368114707,1751027461238,-1102.8,0.00021369,2]
[368114708,1751027461248,-460.0,0.00021369,2]
[368114709,1751027461260,-581.14161172,0.00021369,2]
[368114710,1751027461270,-3172.08,0.00021369,2]
[368114711,1751027461279,-779.54,0.00021369,2]
[368114712,1751027461289,-460.0,0.00021369,2]
[368114713,1751027461298,-867.73,0.00021369,2]
[368114714,1751027461307,-6156.57,0.00021369,2]
[368114715,1751027461317,-742.84,0.00021369,2]
[368114716,1751027461326,-460.0,0.00021369,2]
[368114717,1751027461335,-460.0,0.00021369,2]
[368114718,1751027461344,-460.0,0.00021369,2]
[368114719,1751027461353,-151.0,0.00021369,2]
[368114720,1751027461363,-4231.52,0.00021369,2]
[368114721,1751027461373,-460.0,0.00021369,2]
[368114722,1751027461382,-281.935899,0.00021369,2]
[368114723,1751027461391,-460.0,0.00021369,2]
[368114724,1751027461401,-750.91,0.00021369,2]
[368114725,1751027461410,-1846.1,0.00021369,2]
[368114726,1751027461420,-4008.72,0.00021369,2]
[368114727,1751027461430,-500.0,0.0002138,2]
[368114728,1751027461439,-151.0,0.000214,3]
[368114729,1751027461448,-151.0,0.000214,4]
[368114730,1751027461457,-187.91293387,0.00021415,2]
[368114731,1751027461467,-9378.13373988,0.00021417,5]
[368114732,1751027461476,-168.0,0.00021455,2]
[368114733,1751027461485,-1283.0,0.0002147,2]
[368114734,1751027461496,-168.0,0.00021533,2]
[368114735,1751027461518,-9378.13373988,0.0002159,5]
[368114736,1751027461529,-151.0,0.000216,2]
[368114737,1751027461539,-151.0,0.000216,2]
[368114738,1751027461548,-154.011906,0.000216,2]
[368114739,1751027461558,-217.838062,0.000216,2]
[368114740,1751027461567,-1822.186795,0.000216,2]
[368114741,1751027461577,-1822.186795,0.000216,2]
[368114742,1751027461587,-151.0,0.000216,2]
[368114743,1751027461596,-151.0,0.000216,2]
[368114744,1751027461606,-151.0,0.000216,2]
[368114745,1751027461738,-34981.49626511,0.000216,3]
[368114746,1751027461748,-151.0,0.00021609,4]
[368114747,1751027461761,-524.32400359,0.0002161,3]
[368114748,1751027461771,-213.75309343,0.0002161,3]
[368114749,1751027461781,-847.04181546,0.0002161,3]
[368114750,1751027461790,-12562.41216491,0.0002161,3]
[368114751,1751027461799,-160.0,0.0002161,3]
[368114752,1751027461809,-2000.0,0.00021616,2]
[368114753,1751027461819,-168.0,0.00021626,2]
[368114754,1751027461828,-215.0738,0.00021635,2]
[368114755,1751027461838,-460.0,0.00021643,2]
[368114756,1751027461847,-460.0,0.00021643,2]
[368114757,1751027461857,-868.8,0.00021643,2]
[368114758,1751027461867,-460.0,0.00021643,2]
[368114759,1751027461876,-460.0,0.00021643,2]
[368114760,1751027461886,-151.0,0.00021643,2]
[368114761,1751027461895,-151.0,0.00021643,2]
[368114762,1751027461905,-460.0,0.00021643,2]
[368114763,1751027461915,-189.10408648,0.00021643,2]
[368114764,1751027461925,-884.99,0.00021643,2]
[368114765,1751027461934,-151.0,0.00021643,2]
[368114766,1751027461944,-151.0,0.00021643,2]
[368114767,1751027461954,-460.0,0.00021643,2]
[368114768,1751027461963,-516.86,0.00021643,2]
[368114769,1751027461973,-384.0,0.00021643,2]
[368114770,1751027461983,-563.57,0.00021643,2]
[368114771,1751027461992,-231.07,0.00021643,2]
[368114772,1751027462001,-2007.38,0.00021643,2]
[368114773,1751027462013,-1138.6,0.00021643,2]
[368114774,1751027462023,-460.0,0.00021643,2]
[368114775,1751027462032,-2956.2,0.00021643,2]
[368114776,1751027462043,-7048.19,0.00021643,2]
[368114777,1751027462052,-319.494687,0.00021643,2]
[368114778,1751027462061,-460.0,0.00021643,2]
[368114779,1751027462071,-460.0,0.00021643,2]
[368114780,1751027462081,-460.0,0.00021643,2]
[368114781,1751027462091,-1332.79,0.00021643,2]
[368114782,1751027462101,-460.0,0.00021643,2]
[368114783,1751027462110,-857.83,0.00021643,2]
[368114784,1751027462119,-460.0,0.00021643,2]
[368114785,1751027462129,-460.0,0.00021643,2]
[368114786,1751027462139,-875.94,0.00021643,2]
[368114787,1751027462148,-460.0,0.00021643,2]
[368114788,1751027462157,-1879.18,0.00021643,2]
[368114789,1751027462167,-963.88,0.00021643,2]
[368114790,1751027462177,-706.48,0.00021643,2]
[368114791,1751027462187,-2249.58,0.00021643,2]
[368114792,1751027462196,-5580.76,0.00021643,2]
[368114793,1751027462206,-460.0,0.00021643,2]
[368114794,1751027462215,-1858.16,0.00021643,2]
[368114795,1751027462224,-460.0,0.00021643,2]
[368114796,1751027462234,-484.603058,0.00021643,2]
[368114797,1751027462243,-484.603058,0.00021643,2]
[368114798,1751027462253,-716.5,0.00021643,2]
[368114799,1751027462265,-619.78,0.00021643,2]
[368114800,1751027462275,-495.44,0.00021643,2]
[368114801,1751027462285,-1103.54,0.00021643,2]
[368114802,1751027462295,-1121.1,0.00021643,2]
[368114803,1751027462305,-863.75,0.00021643,2]
[368114804,1751027462315,-151.0,0.00021643,2]
[368114805,1751027462325,-315.45784486,0.00021643,2]
[368114806,1751027462334,-460.0,0.00021643,2]
[368114807,1751027462344,-460.0,0.00021643,2]
[368114808,1751027462354,-2103.41,0.00021643,2]
[368114809,1751027462364,-460.0,0.00021643,2]
[368114810,1751027462374,-460.0,0.00021643,2]
[368114811,1751027462384,-2500.27,0.00021643,2]
[368114812,1751027462393,-652.23,0.00021643,2]
[368114813,1751027462402,-460.0,0.00021643,2]
[368114814,1751027462411,-2369.02,0.00021643,2]
[368114815,1751027462421,-624.87,0.00021643,2]
[368114816,1751027462431,-798.78,0.00021643,2]
[368114817,1751027462442,-460.0,0.00021643,2]
[368114818,1751027462452,-460.0,0.00021643,2]
[368114819,1751027462462,-3858.34,0.00021643,2]
[368114820,1751027462471,-1102.8,0.00021643,2]
[368114821,1751027462482,-460.0,0.00021643,2]
[368114822,1751027462492,-3172.08,0.00021643,2]
[368114823,1751027462502,-779.54,0.00021643,2]
[368114824,1751027462514,-460.0,0.00021643,2]
[368114825,1751027462523,-867.73,0.00021643,2]
[368114826,1751027462533,-6156.57,0.00021643,2]
[368114827,1751027462543,-742.84,0.00021643,2]
[368114828,1751027462553,-460.0,0.00021643,2]
[368114829,1751027462563,-460.0,0.00021643,2]
[368114830,1751027462572,-460.0,0.00021643,2]
[368114831,1751027462582,-4231.52,0.00021643,2]
[368114832,1751027462591,-460.0,0.00021643,2]
[368114833,1751027462601,-460.0,0.00021643,2]
[368114834,1751027462611,-750.91,0.00021643,2]
[368114835,1751027462623,-1846.1,0.00021643,2]
[368114836,1751027462633,-4008.72,0.00021643,2]